bitfinex-derivatives/quotes_ETHF0:USTF0_20250430
["timestamp","ask_amount","ask_price","bid_price","bid_amount"]
[1746026890698,6.62379,1760.0,1759.9,16.04313398]
[1746026890893,4.94519,1760.0,1759.9,17.17938398]
[1746026891289,4.94519,1760.0,1759.9,18.08528398]
[1746026891489,3.809,1760.0,1759.9,18.08528398]
[1746026891692,4.94519,1760.0,1759.9,18.08528398]
[1746026892885,0.907,1760.1,1759.9,16.94903398]
[1746026893092,5.85562487,1760.6,1760.3,1.13599]
[1746026893292,3.5131,1760.6,1760.5,1.13583]
[1746026893585,1.1358,1760.6,1760.5,52.55346398]
[1746026893790,1.13577,1760.7,1760.6,1.13573]
[1746026893989,1.13577,1760.7,1760.6,16.69236398]
[1746026894397,1.13572,1760.8,1760.7,1.13569]
[1746026894599,1.13572,1760.8,1760.7,2.86689]
[1746026894799,1.13572,1760.8,1760.7,13.48452398]
[1746026894999,1.13572,1760.8,1760.7,12.34883398]
[1746026895199,1.13572,1760.8,1760.7,17.31257398]
[1746026895698,6.64688,1761.0,1760.7,17.31257398]
[1746026895699,3.808,1761.0,1760.7,16.17683398]
[1746026895998,6.99110487,1761.2,1761.1,1.13548]
[1746026896198,1.13548,1761.2,1761.1,11.75311398]
[1746026896698,5.85562487,1761.5,1761.2,1.13537]
[1746026896896,5.85562487,1761.5,1761.2,10.61763398]
[1746026896897,10.45119487,1761.5,1761.2,10.61763398]
[1746026897202,1.13535,1761.3,1761.2,14.44563398]
[1746026897601,2.89285,1761.3,1761.2,14.44563398]
[1746026899397,2.89285,1761.3,1761.2,3.828]
[1746026902106,2.89285,1761.3,1761.2,14.44563398]
[1746026902299,2.89285,1761.3,1761.2,15.58104398]
[1746026902498,2.89285,1761.3,1761.2,14.44563398]
[1746026902703,2.89285,1761.3,1761.2,15.58104398]
[1746026903196,9.07253,1761.4,1761.3,1.13535]
[1746026903509,9.07253,1761.4,1761.3,14.96078398]
[1746026903510,3.807,1761.4,1761.3,14.96078398]
[1746026903809,1.9837,1761.6,1761.5,1.13522]
[1746026904009,6.67941,1761.7,1761.6,1.13516]
[1746026904204,6.67941,1761.7,1761.6,11.75279398]
[1746026904404,3.806,1761.7,1761.6,11.75279398]
[1746026904598,1.98937,1761.8,1761.7,1.13509]
[1746026904801,15.11648487,1762.0,1761.8,1.13503]
[1746026904802,1.13501,1761.9,1761.8,1.13503]
[1746026905207,1.13501,1761.9,1761.8,15.58066398]
[1746026905807,11.31092487,1762.0,1761.8,14.44563398]
[1746026906007,2.7842,1762.0,1761.9,10.61763398]
[1746026906213,1.98919,1762.1,1762.0,1.1349]
[1746026906409,4.6814,1762.4,1762.2,1.13473]
[1746026906713,4.93664,1762.4,1762.3,11.75234398]
[1746026906907,4.93664,1762.4,1762.3,10.61763398]
[1746026907107,4.93664,1762.4,1762.3,14.44563398]
[1746026907313,4.93664,1762.4,1762.3,15.58034398]
[1746026907606,3.802,1762.4,1762.3,15.58034398]
[1746026908310,4.93664,1762.4,1762.3,14.44563398]
[1746026909816,4.93664,1762.4,1762.3,16.18103398]
[1746026910415,4.93664,1762.4,1762.3,17.31574398]
[1746026911415,4.93664,1762.4,1762.3,16.18103398]
[1746026911611,4.93664,1762.4,1762.3,3.828]
[1746026912112,1.13477,1762.2,1762.1,4.8891]
[1746026912513,2.83355,1762.3,1762.2,1.13477]
[1746026912712,2.83355,1762.3,1762.2,13.43370398]
[1746026913113,2.83355,1762.3,1762.2,16.12693398]
[1746026913609,2.83355,1762.3,1762.2,17.26170398]
[1746026913809,2.83355,1762.3,1762.2,16.12693398]
[1746026914005,2.83355,1762.3,1762.2,17.26170398]
[1746026914314,4.93668,1762.4,1762.3,1.13471]
[1746026914516,3.802,1762.4,1762.3,13.35474398]
[1746026914721,1.13463,1762.5,1762.4,1.13462]
[1746026915016,1.1345,1762.7,1762.6,1.1345]
[1746026915205,1.13445,1762.7,1762.6,11.75213398]
[1746026915412,1.13445,1762.7,1762.6,13.35453398]
[1746026915812,1.13445,1762.7,1762.6,12.22003398]
[1746026916011,1.13451,1762.6,1762.5,3.2078]
[1746026916212,1.13451,1762.6,1762.5,4.34238]
[1746026916514,1.13451,1762.6,1762.5,12.22003398]
[1746026916919,1.13451,1762.6,1762.5,13.35461398]
[1746026917219,1.13451,1762.6,1762.5,15.42783398]
[1746026918216,1.13451,1762.6,1762.5,19.25583398]
[1746026918417,2.83564,1763.1,1762.5,19.25583398]
[1746026918710,1.13425,1763.0,1762.9,4.34212]
[1746026918917,1.13425,1763.0,1762.9,4.34206]
[1746026919118,1.13425,1763.0,1762.9,17.65343398]
[1746026919418,1.13425,1763.0,1762.9,15.57995398]
[1746026919720,1.13425,1763.0,1762.9,18.78775398]
[1746026920313,3.2078,1763.4,1762.9,22.65343398]
[1746026920512,3.2078,1763.4,1763.3,10.61763398]
[1746026920513,1.13401,1763.4,1763.3,10.61763398]
[1746026920815,7.0068,1763.8,1763.3,16.66057398]
[1746026921018,2.6046,1763.7,1763.5,10.61763398]
[1746026921221,3.73843,1763.7,1763.6,13.49570398]
[1746026921418,3.73843,1763.7,1763.6,16.70350398]
[1746026922314,3.73843,1763.7,1763.6,15.56963398]
[1746026922719,3.73843,1763.7,1763.6,12.36183398]
[1746026923021,3.7384,1763.7,1763.6,13.49570398]
[1746026923407,3.7384,1763.7,1763.6,12.36183398]
[1746026923722,3.7384,1763.7,1763.6,13.49570398]
[1746026924120,3.7384,1763.7,1763.6,12.36183398]
[1746026925109,3.7384,1763.7,1763.6,1.7442]
[1746026926015,1.13387,1763.6,1763.5,3.2078]
[1746026926220,2.89227,1763.6,1763.5,3.2078]
[1746026926419,2.89227,1763.6,1763.5,13.82543398]
[1746026927124,2.89227,1763.6,1763.5,14.95936398]
[1746026928223,2.89227,1763.6,1763.5,16.67506398]
[1746026929124,2.89227,1763.6,1763.5,15.54113398]
[1746026929511,2.89227,1763.6,1763.5,16.67506398]
[1746026929715,2.89227,1763.6,1763.5,15.54113398]
[1746026929926,1.13387,1763.6,1763.5,16.67506398]
[1746026930223,1.13387,1763.6,1763.5,20.50306398]
[1746026931125,1.13387,1763.6,1763.5,16.67506398]
[1746026932122,2.81557,1763.6,1763.5,16.67506398]
[1746026932420,2.81557,1763.6,1763.5,15.54113398]
[1746026932620,2.81557,1763.6,1763.5,16.67506398]
[1746026933324,9.46796,1763.8,1763.5,16.67506398]
[1746026933523,1.1338,1763.7,1763.6,1.7669]
[1746026934224,1.1338,1763.7,1763.6,2.90077]
[1746026934424,1.1338,1763.7,1763.6,1.7669]
[1746026935422,1.1338,1763.7,1763.6,2.90077]
[1746026935623,1.1338,1763.7,1763.6,1.7669]
[1746026935925,1.1338,1763.7,1763.6,2.90077]
[1746026936122,1.14166721,1763.7,1763.6,2.90077]
[1746026936323,1.14166721,1763.7,1763.6,1.7669]
[1746026936526,3.64366721,1763.7,1763.6,1.7669]
[1746026936726,3.64366721,1763.7,1763.6,2.90077]
[1746026937025,3.64366721,1763.7,1763.6,1.7669]
[1746026937421,2.01286721,1763.7,1763.6,12.38453398]
[1746026938126,2.01286721,1763.7,1763.6,13.51840398]
[1746026940032,1.14166721,1763.7,1763.6,13.51840398]
[1746026945233,1.14166721,1763.7,1763.6,12.38453398]
[1746026945434,1.14166721,1763.7,1763.4,40.8]
[1746026945435,1.13393,1763.5,1763.4,40.8]
[1746026945733,1.13393,1763.5,1763.4,43.6707]
[1746026945928,1.13393,1763.5,1763.4,54.28833398]
[1746026946130,2.80482,1763.6,1763.5,1.13393]
[1746026946327,1.13392,1763.6,1763.5,13.48826398]
[1746026946635,1.14172721,1763.7,1763.6,1.13387]
[1746026946836,1.14172721,1763.7,1763.6,14.34710398]
[1746026947636,1.14172721,1763.7,1763.6,13.21323398]
[1746026948634,1.14172721,1763.7,1763.6,14.34710398]
[1746026950237,0.00786721,1763.7,1763.6,14.34710398]
[1746026950433,0.00786721,1763.7,1763.6,15.24340398]
[1746026950639,0.00786721,1763.7,1763.6,14.34710398]
[1746026950640,1.14166721,1763.7,1763.6,14.34710398]
[1746026951037,1.14166721,1763.7,1763.6,13.21323398]
[1746026951440,2.04146721,1763.7,1763.6,13.21323398]
[1746026951741,1.13387,1763.6,1763.5,4.3417]
[1746026952038,1.13387,1763.6,1763.5,16.66563398]
[1746026952237,1.13387,1763.6,1763.5,12.32393398]
[1746026952437,1.13387,1763.6,1763.5,1.7063]
[1746026952634,2.82417,1763.6,1763.5,1.7063]
[1746026952937,2.82417,1763.6,1763.5,2.84023]
[1746026953326,2.82417,1763.6,1763.5,12.32393398]
[1746026953731,2.82417,1763.6,1763.5,13.45786398]
[1746026954039,2.82417,1763.6,1763.5,12.32393398]
[1746026954438,2.82417,1763.6,1763.5,13.45786398]
[1746026954631,1.13387,1763.6,1763.5,13.45786398]
[1746026955444,1.13387,1763.6,1763.5,16.66562398]
[1746026955944,1.13387,1763.6,1763.5,17.56718981]
[1746026958542,1.13387,1763.6,1763.5,16.43329981]
[1746026958747,1.13387,1763.6,1763.5,17.56722981]
[1746026959547,1.13387,1763.6,1763.5,16.69392981]
[1746026960950,1.13387,1763.6,1763.5,15.55999981]
[1746026961149,1.13387,1763.6,1763.5,16.69392981]
[1746026961647,1.14172721,1763.7,1763.6,1.13387]
[1746026961849,1.14172721,1763.7,1763.6,14.25720398]
[1746026962042,1.14172721,1763.7,1763.6,14.28546981]
[1746026962550,1.14172721,1763.7,1763.6,15.16896981]
[1746026963950,0.00786721,1763.7,1763.6,15.16896981]
[1746026964363,1.14166721,1763.7,1763.6,15.16896981]
[1746026970364,0.00786721,1763.7,1763.6,15.16896981]
[1746026973163,1.14166721,1763.7,1763.6,15.16896981]
[1746026973957,0.00786721,1763.7,1763.6,15.16896981]
[1746026974259,1.14166721,1763.7,1763.6,1.67606583]
[1746026974463,2.77146721,1763.7,1763.6,0.02826583]
[1746026974668,2.77146721,1763.7,1763.6,1.16213583]
[1746026974964,2.77146721,1763.7,1763.6,2.83523583]
[1746026977665,0.00786721,1763.7,1763.6,2.83523583]
[1746026977870,0.00786721,1763.7,1763.6,14.30666981]
[1746026981572,1.14166721,1763.7,1763.6,14.30666981]
[1746026983063,0.00786721,1763.7,1763.6,14.30666981]
[1746026983872,1.14166721,1763.7,1763.6,14.30666981]
[1746026984271,1.14166721,1763.7,1763.6,13.45286981]
[1746026986975,0.00786721,1763.7,1763.6,13.45286981]
[1746026987272,1.14166721,1763.7,1763.6,13.45286981]
[1746026989069,0.00786721,1763.7,1763.6,13.45286981]
[1746026989271,1.14166721,1763.7,1763.6,13.45286981]
[1746026989775,0.00786721,1763.7,1763.6,13.45286981]
[1746026990081,1.14166721,1763.7,1763.6,13.45286981]
[1746026992067,0.00786721,1763.7,1763.6,13.45286981]
[1746026993484,5.85562487,1764.0,1763.9,1.13368]
[1746026993774,3.79,1764.2,1764.1,1.13355]
[1746026993978,10.40111487,1764.4,1764.3,1.13342]
[1746026994181,4.54549,1764.4,1764.3,1.13342]
[1746026994479,1.13342,1764.3,1764.2,3.69176]
[1746026994781,8.68867487,1764.7,1764.3,10.61763398]
[1746026994969,3.4121,1764.7,1764.6,1.13323]
[1746026995175,0.8911,1764.7,1764.6,4.36929583]
[1746026995374,21.18712209,1764.9,1764.7,1.13313]
[1746026995677,21.18712209,1764.9,1764.7,2.84106]
[1746026995678,23.21129209,1764.9,1764.7,2.84106]
[1746026995883,1.1331,1764.8,1764.7,2.84106]
[1746026996179,23.21130209,1764.9,1764.7,2.86928583]
[1746026996481,1.1331,1764.8,1764.7,2.86928583]
[1746026996686,23.21130209,1764.9,1764.8,1.1331]
[1746026996980,23.21130209,1764.9,1764.8,2.7432]
[1746026997278,23.21130209,1764.9,1764.8,1.63836583]
[1746026998476,23.21130209,1764.9,1764.8,0.02826583]
[1746026998680,8.33518,1764.9,1764.8,0.02826583]
[1746027001774,8.33518,1764.9,1764.8,1.16136583]
[1746027001775,6.71768,1764.9,1764.8,1.16136583]
[1746027001980,6.71768,1764.9,1764.8,3.74216583]
[1746027002175,5.81418,1764.9,1764.8,3.74216583]
[1746027003382,5.81418,1764.9,1764.8,1.70966583]
[1746027003582,7.55878,1764.9,1764.8,1.70966583]
[1746027003878,7.55878,1764.9,1764.8,0.02826583]
[1746027004077,11.38678,1764.9,1764.8,0.02826583]
[1746027006573,11.38678,1764.9,1764.4,4.1072]
[1746027006574,1.13329,1764.5,1764.4,2.76645]
[1746027006770,1.13329,1764.5,1764.4,1.6331]
[1746027006978,1.13329,1764.5,1764.4,53.05073398]
[1746027007178,1.13329,1764.5,1764.4,12.25073398]
[1746027007479,6.65977,1764.6,1764.5,1.13329]
[1746027007783,6.65977,1764.6,1764.5,1.6331]
[1746027011490,1.13355,1764.1,1764.0,3.2078]
[1746027011788,1.13355,1764.1,1764.0,5.19731]
[1746027012083,1.13355,1764.1,1764.0,14.68133398]
[1746027012483,1.13355,1764.1,1764.0,17.47614398]
[1746027014389,1.13355,1764.1,1764.0,14.26834398]
[1746027015490,1.13355,1764.1,1764.0,1.6612]
[1746027015681,2.90335,1764.1,1764.0,1.6612]
[1746027017195,6.73135,1764.1,1764.0,1.6612]
[1746027017394,6.73135,1764.1,1764.0,2.79493]
[1746027017597,4.96155,1764.1,1764.0,2.79493]
[1746027017788,4.96155,1764.1,1764.0,1.6612]
[1746027018195,1.13355,1764.1,1764.0,1.6612]
[1746027018794,2.81185,1764.1,1764.0,1.6612]
[1746027020989,2.81185,1764.1,1764.0,12.27883398]
[1746027021391,2.83439,1764.0,1763.4,3.2078]
[1746027021692,1.13398,1763.6,1763.5,10.61763398]
[1746027021992,1.13405,1763.5,1763.4,13.51954398]
[1746027022298,1.13405,1763.5,1763.4,1.13411]
[1746027022496,1.13405,1763.5,1763.4,52.55174398]
[1746027023595,1.13405,1763.5,1763.4,51.41763398]
[1746027023897,1.13405,1763.5,1763.4,40.8]
[1746027024097,8.6557,1763.5,1762.9,4.3422]
[1746027024399,1.1343,1763.1,1763.0,10.61763398]
[1746027024698,1.13437,1763.0,1762.9,10.61763398]
[1746027024898,7.0705,1763.1,1763.0,10.61763398]
[1746027025097,8.2048,1763.1,1763.0,10.61763398]
[1746027025398,1.13443,1762.9,1762.8,49.38562774]
[1746027025796,1.13443,1762.9,1762.8,60.00326172]
[1746027026293,1.13443,1762.9,1762.8,58.86878172]
[1746027026502,1.13443,1762.9,1762.8,18.06878172]
[1746027026998,1.13443,1762.9,1762.8,58.86878172]
[1746027027199,1.13443,1762.9,1762.8,18.06878172]
[1746027027500,1.13443,1762.9,1762.8,11.75213398]
[1746027028097,1.13443,1762.9,1762.8,10.61763398]
[1746027030900,4.91933,1763.1,1763.0,1.13437]
[1746027031099,1.1343,1763.1,1763.0,10.61763398]
[1746027032001,1.1343,1763.1,1763.0,11.75194398]
[1746027032496,1.1343,1763.1,1763.0,10.61763398]
[1746027032704,1.1345,1762.8,1762.7,41.06499]
[1746027032900,4.9165,1762.8,1762.7,41.06499]
[1746027033203,3.782,1762.8,1762.7,52.81718398]
[1746027033400,3.782,1763.1,1763.0,1.13437]
[1746027033599,3.782,1763.1,1763.0,11.75200398]
[1746027033799,3.782,1763.1,1763.0,13.44050398]
[1746027034191,3.782,1763.1,1763.0,22.26850398]
[1746027034505,8.1241,1763.1,1763.0,3.828]
[1746027034708,16.5906,1763.1,1763.0,3.828]
[1746027035204,1.1345,1762.8,1762.7,41.06499]
[1746027035499,8.1243,1762.8,1762.7,41.06499]
[1746027035696,8.1243,1762.8,1762.7,0.26499]
[1746027036197,3.782,1762.8,1762.7,12.01718398]
[1746027036398,4.9165,1762.8,1762.7,12.01718398]
[1746027036802,3.782,1762.8,1762.7,12.01718398]
[1746027037001,3.782,1763.1,1763.0,1.13437]
[1746027037197,3.782,1763.1,1763.0,11.75200398]
[1746027037399,4.9163,1763.1,1763.0,10.61763398]
[1746027037599,4.9163,1763.1,1763.0,51.41763398]
[1746027038201,3.782,1763.1,1763.0,52.55200398]
[1746027038705,4.9163,1763.1,1763.0,52.55200398]
[1746027038907,3.782,1763.1,1763.0,52.55200398]
[1746027039601,3.782,1763.1,1763.0,54.24740398]
[1746027039800,3.782,1763.1,1763.0,59.24740398]
[1746027040003,1.13415,1763.4,1763.3,1.13412]
[1746027040200,1.13415,1763.4,1763.3,11.75175398]
[1746027040407,1.13418,1763.3,1763.2,1.6954]
[1746027040602,0.8252,1763.4,1763.3,10.61763398]
[1746027040903,1.95931,1763.4,1763.3,10.61763398]
[1746027041104,1.13424,1763.2,1763.1,1.94456]
[1746027041406,1.13422,1763.3,1763.2,1.13421]
[1746027041802,1.13422,1763.3,1763.2,11.75184398]
[1746027043809,1.13422,1763.3,1763.2,10.61763398]
[1746027044703,1.13424,1763.2,1763.1,0.8103]
[1746027044904,2.83558,1763.3,1763.0,41.93435]
[1746027045103,1.13424,1763.2,1763.1,11.75192398]
[1746027045305,1.13424,1763.2,1763.0,40.8]
[1746027045306,1.1342,1763.3,1763.2,11.75181398]
[1746027045707,6.00106,1763.4,1763.3,1.13418]
[1746027046407,1.13418,1763.3,1763.2,2.02539]
[1746027047201,6.00107,1763.4,1763.3,11.75181398]
[1746027047709,1.1343,1763.1,1763.0,40.8]
[1746027048006,1.13429,1763.2,1763.1,1.13429]
[1746027048213,4.91629,1763.2,1763.1,1.13429]
[1746027048512,3.782,1763.2,1763.1,11.75192398]
[1746027049011,3.782,1763.2,1763.1,10.61763398]
[1746027049012,4.91624,1763.2,1763.1,10.61763398]
[1746027049508,4.91624,1763.2,1763.0,41.93433]
[1746027049509,1.1343,1763.1,1763.0,41.93433]
[1746027049699,1.1343,1763.1,1763.0,40.8]
[1746027049901,1.1343,1763.1,1763.0,51.41763398]
[1746027050209,1.13437,1763.0,1762.9,0.884]
[1746027050418,1.13443,1762.9,1762.8,3.2078]
[1746027050606,1.13443,1762.9,1762.8,45.1423]
[1746027050806,1.13439,1763.0,1762.9,1.13437]
[1746027051001,3.782,1763.2,1762.9,13.45368398]
[1746027051200,1.13423,1763.3,1763.2,1.13422]
[1746027051406,1.13423,1763.3,1763.2,11.75185398]
[1746027051600,1.13423,1763.3,1763.2,10.61763398]
[1746027052111,8.12391,1763.4,1763.3,1.13418]
[1746027052312,8.12391,1763.4,1763.3,12.56181398]
[1746027052505,1.13403,1763.6,1763.5,1.13403]
[1746027052709,1.13398,1763.6,1763.5,11.75166398]
[1746027053315,1.13398,1763.6,1763.5,10.61763398]
[1746027053709,1.13398,1763.6,1763.5,11.75168398]
[1746027054116,1.13398,1763.6,1763.5,10.61763398]
[1746027054617,6.86032,1763.7,1763.3,0.81]
[1746027054821,1.95145,1763.5,1763.4,10.61763398]
[1746027055116,5.73345,1763.5,1763.4,10.61763398]
[1746027055318,1.13418,1763.3,1763.2,5.21049]
[1746027055517,1.13418,1763.3,1763.2,4.0763]
[1746027055715,1.13418,1763.3,1763.2,13.82543398]
[1746027056620,1.13418,1763.3,1763.2,14.95967398]
[1746027056919,1.13418,1763.3,1763.2,11.75187398]
[1746027057516,7.8072,1763.5,1763.3,1.13412]
[1746027057710,7.8072,1763.5,1763.4,10.61763398]
[1746027057917,8.94125,1763.5,1763.4,10.61763398]
[1746027058110,1.13411,1763.4,1763.3,2.02863]
[1746027058523,1.13411,1763.4,1763.3,12.64626398]
[1746027058710,1.13411,1763.4,1763.3,10.61763398]
[1746027058914,1.13418,1763.3,1763.2,1.13422]
[1746027059119,1.13424,1763.2,1763.1,6.08825]
[1746027059312,2.83545,1763.3,1762.9,3.2078]
[1746027059518,1.13424,1763.2,1763.1,10.61763398]
[1746027059815,2.85484,1763.2,1763.1,10.61763398]
[1746027060016,1.1343,1763.1,1763.0,1.6879]
[1746027060216,1.9407,1763.1,1763.0,1.6879]
[1746027060515,1.9407,1763.1,1763.0,12.30553398]
[1746027061418,1.13443,1762.9,1762.8,40.8]
[1746027061618,1.13443,1762.9,1762.8,51.41763398]
[1746027061920,1.13443,1762.9,1762.8,10.61763398]
[1746027062119,1.13443,1762.9,1762.8,11.75213398]
[1746027062320,1.13443,1762.9,1762.8,54.19433398]
[1746027063429,1.13443,1762.9,1762.8,42.4422]
[1746027063728,1.1345,1762.8,1762.7,0.26499]
[1746027064025,3.781,1762.8,1762.7,0.26499]
[1746027064226,3.781,1762.8,1762.7,12.61062398]
[1746027064824,3.781,1762.8,1762.7,1.99299]
[1746027065017,3.781,1762.8,1762.7,0.26499]
[1746027066524,2.0148,1762.8,1762.7,10.88262398]
[1746027066727,2.0148,1762.8,1762.7,0.26499]
[1746027066927,3.7513,1762.8,1762.7,0.26499]
[1746027068316,7.5793,1762.8,1762.7,0.26499]
[1746027068834,7.5793,1762.8,1762.7,12.01718398]
[1746027068835,4.7083,1762.8,1762.7,12.01718398]
[1746027069034,4.9625,1762.8,1762.7,12.01718398]
[1746027069220,1.13442,1763.0,1762.9,1.13443]
[1746027069420,1.13442,1763.0,1762.9,11.75206398]
[1746027069729,4.34222,1763.0,1762.9,10.61763398]
[1746027069930,4.34222,1763.0,1762.9,1.7297]
[1746027070231,4.34222,1763.0,1762.9,12.34733398]
[1746027071035,1.1345,1762.8,1762.7,0.26499]
[1746027071224,4.3423,1762.8,1762.7,1.99469]
[1746027071930,6.0072,1762.8,1762.7,1.99469]
[1746027072635,6.8173,1762.8,1762.7,1.99469]
[1746027072834,6.8173,1762.8,1762.7,13.74688398]
[1746027072835,4.3423,1762.8,1762.7,13.74688398]
[1746027073246,3.2078,1762.8,1762.7,14.62618398]
[1746027073448,4.91345,1762.9,1762.8,1.1345]
[1746027073647,4.91345,1762.9,1762.8,13.49743398]
[1746027074446,3.779,1762.9,1762.8,13.49743398]
[1746027075648,1.13433,1763.1,1763.0,1.13437]
[1746027075949,4.34213,1763.1,1763.0,11.75200398]
[1746027076439,4.34213,1763.1,1763.0,13.43220398]
[1746027077150,5.72339,1763.2,1763.1,1.1343]
[1746027077345,5.72339,1763.2,1763.1,14.31103398]
[1746027077547,4.91329,1763.2,1763.1,14.31103398]
[1746027078048,3.779,1763.2,1763.1,14.31103398]
[1746027078249,4.91324,1763.2,1763.1,14.31103398]
[1746027078547,4.91324,1763.2,1763.1,13.17673398]
[1746027078750,4.91324,1763.2,1763.1,1.6802]
[1746027078944,6.66844,1763.2,1763.1,1.6802]
[1746027079144,1.13443,1762.9,1762.8,1.6929]
[1746027079348,8.12123,1762.9,1762.8,1.6929]
[1746027079741,8.12123,1762.9,1762.7,0.26499]
[1746027079742,1.1345,1762.8,1762.7,0.26499]
[1746027080049,3.7451,1762.8,1762.7,0.26499]
[1746027080346,12.5731,1762.8,1762.7,0.26499]
[1746027080549,1.13475,1762.4,1762.3,9.14404774]
[1746027080849,8.12155,1762.4,1762.3,9.14404774]
[1746027081547,10.73015,1762.4,1762.3,1.6929]
[1746027082145,10.73015,1762.4,1762.3,2.82772]
[1746027082342,7.52235,1762.4,1762.3,2.82772]
[1746027082545,10.73015,1762.4,1762.3,1.6929]
[1746027082745,2.83705,1762.3,1761.8,7.45114774]
[1746027082949,1.13495,1762.1,1762.0,10.61763398]
[1746027083145,1.13495,1762.1,1761.9,1.6116]
[1746027083146,1.13501,1762.0,1761.9,12.22923398]
[1746027083451,2.81461,1762.0,1761.9,13.36427398]
[1746027083650,2.81461,1762.0,1761.9,12.22923398]
[1746027083855,1.13508,1761.9,1761.8,7.45114774]
[1746027084048,6.02248,1761.9,1761.8,7.45114774]
[1746027084349,6.02248,1761.9,1761.8,9.06274774]
[1746027084547,6.02248,1761.9,1761.8,7.45114774]
[1746027084948,6.02248,1761.9,1761.8,9.14514774]
[1746027085148,4.34288,1761.9,1761.8,13.44677398]
[1746027086446,3.2078,1761.9,1761.8,13.44677398]
[1746027086649,3.779,1762.1,1762.0,1.13501]
[1746027086856,3.78,1762.3,1762.2,1.13485]
[1746027087054,3.78,1762.3,1762.2,11.75248398]
[1746027087558,3.78,1762.3,1762.2,16.75248398]
[1746027087853,1.13459,1762.7,1762.6,1.13463]
[1746027088051,4.91159,1762.7,1762.6,11.75226398]
[1746027088251,4.91159,1762.7,1762.6,1.13463]
[1746027088450,1.13469,1762.5,1762.4,1.96353]
[1746027088957,4.91159,1762.7,1762.6,1.13463]
[1746027089253,3.777,1762.7,1762.6,11.75226398]
[1746027090257,4.91156,1762.7,1762.6,11.75226398]
[1746027090450,8.11936,1762.7,1762.6,10.61763398]
[1746027090957,4.91156,1762.7,1762.6,10.61763398]
[1746027091856,8.11936,1762.7,1762.6,10.61763398]
[1746027092559,3.777,1762.7,1762.6,11.75226398]
[1746027093852,3.777,1762.7,1762.6,14.96006398]
[1746027094759,3.2078,1762.9,1762.8,1.1345]
[1746027094959,1.97224,1763.1,1763.0,1.13437]
[1746027095551,1.1344,1763.0,1762.9,1.13438]
[1746027095951,1.1344,1763.0,1762.9,11.75201398]
[1746027096148,1.1344,1763.0,1762.9,1.13438]
[1746027096353,1.1344,1763.0,1762.9,11.75201398]
[1746027097458,1.1344,1763.0,1762.9,1.13438]
[1746027097653,2.83609,1762.9,1762.4,4.0366]
[1746027097858,1.13456,1762.7,1762.6,10.61763398]
[1746027098052,1.13456,1762.7,1762.6,11.75226398]
[1746027098258,3.70696,1762.7,1762.6,11.75226398]
[1746027098760,3.70696,1762.7,1762.6,1.13463]
[1746027098959,1.13466,1762.6,1762.5,1.13464]
[1746027099155,2.88426,1762.6,1762.5,11.75227398]
[1746027099353,9.9574,1762.6,1762.1,3.2078]
[1746027099553,4.34273,1762.2,1762.1,1.13492]
[1746027099755,3.776,1762.8,1762.7,1.13456]
[1746027100157,4.9105,1762.8,1762.7,1.13456]
[1746027100360,3.776,1762.8,1762.7,1.13456]
[1746027101054,4.9105,1762.8,1762.7,1.13456]
[1746027101256,3.776,1762.8,1762.7,1.13456]
[1746027101664,4.9105,1762.8,1762.7,1.13456]
[1746027102755,5.8007,1762.8,1762.7,1.13456]
[1746027102961,1.13456,1762.7,1762.6,2.89978]
[1746027103164,1.13456,1762.7,1762.6,13.51746398]
[1746027103763,1.13456,1762.7,1762.6,12.38283398]
[1746027103965,2.83648,1762.7,1762.3,4.3426]
[1746027104165,1.13469,1762.5,1762.4,13.44568398]
[1746027104464,4.91069,1762.5,1762.4,12.31093398]
[1746027104663,5.80089,1762.5,1762.4,1.6933]
[1746027105162,5.80089,1762.5,1762.4,2.82805]
[1746027106768,3.776,1762.5,1762.4,2.82805]
[1746027106966,3.776,1762.5,1762.4,14.28708398]
[1746027107153,3.776,1762.5,1762.4,19.28708398]
[1746027107566,9.0698,1762.8,1762.6,1.13456]
[1746027107567,1.13456,1762.7,1762.6,1.13456]
[1746027107767,1.13456,1762.7,1762.6,2.76966]
[1746027108061,12.8468,1762.8,1762.6,12.25273398]
[1746027108266,3.777,1762.8,1762.7,12.25273398]
[1746027108859,3.777,1762.8,1762.7,13.38729398]
[1746027109054,4.9115,1762.8,1762.7,13.38729398]
[1746027109467,3.777,1762.8,1762.7,13.38729398]
[1746027109658,3.777,1762.8,1762.7,18.38729398]
[1746027109860,5.862,1763.1,1762.7,61.26053398]
[1746027110167,3.777,1763.4,1763.0,10.61763398]
[1746027110361,3.777,1763.4,1762.8,0.8903]
[1746027110362,3.777,1763.4,1763.3,10.61763398]
[1746027111161,3.777,1763.4,1763.3,12.29153398]
[1746027112958,3.777,1763.4,1763.3,1.6739]
[1746027114768,3.777,1763.4,1763.3,12.29153398]
[1746027115064,5.5208,1763.7,1763.3,12.29153398]
[1746027115272,3.776,1763.7,1763.5,10.61763398]
[1746027115473,3.776,1763.7,1763.6,1.7732]
[1746027116370,5.4056,1763.7,1763.6,1.7732]
[1746027120071,3.776,1763.7,1763.6,1.7732]
[1746027120272,3.776,1763.7,1763.6,12.39083398]
[1746027120474,5.862,1763.8,1763.6,12.39083398]
[1746027120673,5.862,1763.8,1763.5,3.2078]
[1746027120674,3.774,1763.9,1763.7,12.26393398]
[1746027120874,4.90779,1763.9,1763.8,12.26393398]
[1746027121171,4.90779,1763.9,1763.8,1.6463]
[1746027121376,7.43599,1763.9,1763.8,1.6463]
[1746027121875,6.3022,1763.9,1763.8,1.6463]
[1746027122072,3.2078,1764.2,1763.8,12.26393398]
[1746027122270,3.774,1764.4,1764.0,3.2078]
[1746027122570,3.774,1764.7,1764.4,10.61763398]
[1746027122775,3.774,1764.7,1764.4,3.2078]
[1746027123067,4.90728,1764.7,1764.6,10.61763398]
[1746027123877,1.1336,1764.2,1764.1,42.5099]
[1746027124175,6.9808,1764.4,1764.2,10.61763398]